{"text_format":"1","workbook":"xlsx","n_sheets":2,"sheets":["البيانات","تجميع الغياب"],"not_rendered":{"charts":0,"images":0,"macros":1,"external_links":0,"defined_names":3,"comments":0,"pivot_tables":0},"unopened":[],"bounds":{"document_bytes":16777216,"sheet_cells":100000,"rows_first":2000,"rows_last":500,"rows_between":2000,"halvings":0,"cell_chars":16384,"cell_head_chars":4096},"cells_cut":0,"cells_raw":0,"read":"whole","date_system":"1900"}

{"sheet":"البيانات","index":0,"n_rows":40,"n_cols":42,"rows_kept":40,"cut":false,"hidden":false,"merged":[[1,30,1,32],[2,30,2,32],[3,30,3,32],[4,33,5,33]]}
[null,null,null,null,null,null,null,null,null,null,null,null,null,null,null,null,null,null,null,null,null,null,null,null,null,null,null,null,null,null,null,null,null,{"$f":"IF(AH2<10,0&AH2,AH2)","v":"02"}]
[null,null,null,null,null,null,null,null,null,null,null,null,null,null,null,null,null,null,null,null,null,null,null,null,null,null,null,null,null,null,"الشهر الحالي",null,null,{"$f":"MATCH($AH$4,{\"يناير\";\"فبراير\";\"مارس\";\"أبريل\";\"مايو\";\"يونيو\";\"يوليه\";\"أغسطس\";\"سبتمبر\";\"أكتوبر\";\"نوفمبر\";\"ديسمبر\"},0)","v":2}]
[null,null,null,null,null,null,null,null,null,null,null,null,null,null,null,null,null,null,null,null,null,null,null,null,null,null,null,null,null,null,"اختر السنة",null,null,2023]
[null,null,null,null,null,null,null,null,null,null,null,null,null,null,null,null,null,null,null,null,null,null,null,null,null,null,null,null,null,null,"اختر الشهر",null,null,"فبراير"]
[null,null,{"$f":"IF(C6=\"\",\"\",INDEX($AM$10:$AM$16,WEEKDAY(C6,16)))","v":"الأربعاء"},{"$f":"IF(D6=\"\",\"\",INDEX($AM$10:$AM$16,WEEKDAY(D6,16)))","v":"الخميس"},"الجمعة","السبت","الأحد","الإثنين","الثلاثاء","الأربعاء","الخميس","الجمعة","السبت","الأحد","الإثنين","الثلاثاء","الأربعاء","الخميس","الجمعة","السبت","الأحد","الإثنين","الثلاثاء","الأربعاء","الخميس","الجمعة","السبت","الأحد","الإثنين","الثلاثاء","","","","إحصاء الغياب"]
["م","الاسم",{"$f":"IF(COLUMNS($C$2:C2)>DAY(DATE($AH$3,INDEX(ROW($A$1:A12),MATCH($AH$4,$AN$10:$AN$21,0)),COLUMNS($C$2:C2))),\"\",DATE($AH$3,INDEX(ROW($A$1:A12),MATCH($AH$4,$AN$10:$AN$21,0)),COLUMNS($C$2:C2)))","v":"2023-02-01"},{"$f":"IF(COLUMNS($C$2:D2)>DAY(DATE($AH$3,INDEX(ROW($A$1:B12),MATCH($AH$4,$AN$10:$AN$21,0)),COLUMNS($C$2:D2))),\"\",DATE($AH$3,INDEX(ROW($A$1:B12),MATCH($AH$4,$AN$10:$AN$21,0)),COLUMNS($C$2:D2)))","v":"2023-02-02"},{"$f":"IF(COLUMNS($C$2:E2)>DAY(DATE($AH$3,INDEX(ROW($A$1:C12),MATCH($AH$4,$AN$10:$AN$21,0)),COLUMNS($C$2:E2))),\"\",DATE($AH$3,INDEX(ROW($A$1:C12),MATCH($AH$4,$AN$10:$AN$21,0)),COLUMNS($C$2:E2)))","v":"2023-02-03"},{"$f":"IF(COLUMNS($C$2:F2)>DAY(DATE($AH$3,INDEX(ROW($A$1:D12),MATCH($AH$4,$AN$10:$AN$21,0)),COLUMNS($C$2:F2))),\"\",DATE($AH$3,INDEX(ROW($A$1:D12),MATCH($AH$4,$AN$10:$AN$21,0)),COLUMNS($C$2:F2)))","v":"2023-02-04"},{"$f":"IF(COLUMNS($C$2:G2)>DAY(DATE($AH$3,INDEX(ROW($A$1:E12),MATCH($AH$4,$AN$10:$AN$21,0)),COLUMNS($C$2:G2))),\"\",DATE($AH$3,INDEX(ROW($A$1:E12),MATCH($AH$4,$AN$10:$AN$21,0)),COLUMNS($C$2:G2)))","v":"2023-02-05"},{"$f":"IF(COLUMNS($C$2:H2)>DAY(DATE($AH$3,INDEX(ROW($A$1:F12),MATCH($AH$4,$AN$10:$AN$21,0)),COLUMNS($C$2:H2))),\"\",DATE($AH$3,INDEX(ROW($A$1:F12),MATCH($AH$4,$AN$10:$AN$21,0)),COLUMNS($C$2:H2)))","v":"2023-02-06"},{"$f":"IF(COLUMNS($C$2:I2)>DAY(DATE($AH$3,INDEX(ROW($A$1:G12),MATCH($AH$4,$AN$10:$AN$21,0)),COLUMNS($C$2:I2))),\"\",DATE($AH$3,INDEX(ROW($A$1:G12),MATCH($AH$4,$AN$10:$AN$21,0)),COLUMNS($C$2:I2)))","v":"2023-02-07"},{"$f":"IF(COLUMNS($C$2:J2)>DAY(DATE($AH$3,INDEX(ROW($A$1:H12),MATCH($AH$4,$AN$10:$AN$21,0)),COLUMNS($C$2:J2))),\"\",DATE($AH$3,INDEX(ROW($A$1:H12),MATCH($AH$4,$AN$10:$AN$21,0)),COLUMNS($C$2:J2)))","v":"2023-02-08"},{"$f":"IF(COLUMNS($C$2:K2)>DAY(DATE($AH$3,INDEX(ROW($A$1:I12),MATCH($AH$4,$AN$10:$AN$21,0)),COLUMNS($C$2:K2))),\"\",DATE($AH$3,INDEX(ROW($A$1:I12),MATCH($AH$4,$AN$10:$AN$21,0)),COLUMNS($C$2:K2)))","v":"2023-02-09"},{"$f":"IF(COLUMNS($C$2:L2)>DAY(DATE($AH$3,INDEX(ROW($A$1:J12),MATCH($AH$4,$AN$10:$AN$21,0)),COLUMNS($C$2:L2))),\"\",DATE($AH$3,INDEX(ROW($A$1:J12),MATCH($AH$4,$AN$10:$AN$21,0)),COLUMNS($C$2:L2)))","v":"2023-02-10"},{"$f":"IF(COLUMNS($C$2:M2)>DAY(DATE($AH$3,INDEX(ROW($A$1:K12),MATCH($AH$4,$AN$10:$AN$21,0)),COLUMNS($C$2:M2))),\"\",DATE($AH$3,INDEX(ROW($A$1:K12),MATCH($AH$4,$AN$10:$AN$21,0)),COLUMNS($C$2:M2)))","v":"2023-02-11"},{"$f":"IF(COLUMNS($C$2:N2)>DAY(DATE($AH$3,INDEX(ROW($A$1:L12),MATCH($AH$4,$AN$10:$AN$21,0)),COLUMNS($C$2:N2))),\"\",DATE($AH$3,INDEX(ROW($A$1:L12),MATCH($AH$4,$AN$10:$AN$21,0)),COLUMNS($C$2:N2)))","v":"2023-02-12"},{"$f":"IF(COLUMNS($C$2:O2)>DAY(DATE($AH$3,INDEX(ROW($A$1:M12),MATCH($AH$4,$AN$10:$AN$21,0)),COLUMNS($C$2:O2))),\"\",DATE($AH$3,INDEX(ROW($A$1:M12),MATCH($AH$4,$AN$10:$AN$21,0)),COLUMNS($C$2:O2)))","v":"2023-02-13"},{"$f":"IF(COLUMNS($C$2:P2)>DAY(DATE($AH$3,INDEX(ROW($A$1:N12),MATCH($AH$4,$AN$10:$AN$21,0)),COLUMNS($C$2:P2))),\"\",DATE($AH$3,INDEX(ROW($A$1:N12),MATCH($AH$4,$AN$10:$AN$21,0)),COLUMNS($C$2:P2)))","v":"2023-02-14"},{"$f":"IF(COLUMNS($C$2:Q2)>DAY(DATE($AH$3,INDEX(ROW($A$1:O12),MATCH($AH$4,$AN$10:$AN$21,0)),COLUMNS($C$2:Q2))),\"\",DATE($AH$3,INDEX(ROW($A$1:O12),MATCH($AH$4,$AN$10:$AN$21,0)),COLUMNS($C$2:Q2)))","v":"2023-02-15"},{"$f":"IF(COLUMNS($C$2:R2)>DAY(DATE($AH$3,INDEX(ROW($A$1:P12),MATCH($AH$4,$AN$10:$AN$21,0)),COLUMNS($C$2:R2))),\"\",DATE($AH$3,INDEX(ROW($A$1:P12),MATCH($AH$4,$AN$10:$AN$21,0)),COLUMNS($C$2:R2)))","v":"2023-02-16"},{"$f":"IF(COLUMNS($C$2:S2)>DAY(DATE($AH$3,INDEX(ROW($A$1:Q12),MATCH($AH$4,$AN$10:$AN$21,0)),COLUMNS($C$2:S2))),\"\",DATE($AH$3,INDEX(ROW($A$1:Q12),MATCH($AH$4,$AN$10:$AN$21,0)),COLUMNS($C$2:S2)))","v":"2023-02-17"},{"$f":"IF(COLUMNS($C$2:T2)>DAY(DATE($AH$3,INDEX(ROW($A$1:R12),MATCH($AH$4,$AN$10:$AN$21,0)),COLUMNS($C$2:T2))),\"\",DATE($AH$3,INDEX(ROW($A$1:R12),MATCH($AH$4,$AN$10:$AN$21,0)),COLUMNS($C$2:T2)))","v":"2023-02-18"},{"$f":"IF(COLUMNS($C$2:U2)>DAY(DATE($AH$3,INDEX(ROW($A$1:S12),MATCH($AH$4,$AN$10:$AN$21,0)),COLUMNS($C$2:U2))),\"\",DATE($AH$3,INDEX(ROW($A$1:S12),MATCH($AH$4,$AN$10:$AN$21,0)),COLUMNS($C$2:U2)))","v":"2023-02-19"},{"$f":"IF(COLUMNS($C$2:V2)>DAY(DATE($AH$3,INDEX(ROW($A$1:T12),MATCH($AH$4,$AN$10:$AN$21,0)),COLUMNS($C$2:V2))),\"\",DATE($AH$3,INDEX(ROW($A$1:T12),MATCH($AH$4,$AN$10:$AN$21,0)),COLUMNS($C$2:V2)))","v":"2023-02-20"},{"$f":"IF(COLUMNS($C$2:W2)>DAY(DATE($AH$3,INDEX(ROW($A$1:U12),MATCH($AH$4,$AN$10:$AN$21,0)),COLUMNS($C$2:W2))),\"\",DATE($AH$3,INDEX(ROW($A$1:U12),MATCH($AH$4,$AN$10:$AN$21,0)),COLUMNS($C$2:W2)))","v":"2023-02-21"},{"$f":"IF(COLUMNS($C$2:X2)>DAY(DATE($AH$3,INDEX(ROW($A$1:V12),MATCH($AH$4,$AN$10:$AN$21,0)),COLUMNS($C$2:X2))),\"\",DATE($AH$3,INDEX(ROW($A$1:V12),MATCH($AH$4,$AN$10:$AN$21,0)),COLUMNS($C$2:X2)))","v":"2023-02-22"},{"$f":"IF(COLUMNS($C$2:Y2)>DAY(DATE($AH$3,INDEX(ROW($A$1:W12),MATCH($AH$4,$AN$10:$AN$21,0)),COLUMNS($C$2:Y2))),\"\",DATE($AH$3,INDEX(ROW($A$1:W12),MATCH($AH$4,$AN$10:$AN$21,0)),COLUMNS($C$2:Y2)))","v":"2023-02-23"},{"$f":"IF(COLUMNS($C$2:Z2)>DAY(DATE($AH$3,INDEX(ROW($A$1:X12),MATCH($AH$4,$AN$10:$AN$21,0)),COLUMNS($C$2:Z2))),\"\",DATE($AH$3,INDEX(ROW($A$1:X12),MATCH($AH$4,$AN$10:$AN$21,0)),COLUMNS($C$2:Z2)))","v":"2023-02-24"},{"$f":"IF(COLUMNS($C$2:AA2)>DAY(DATE($AH$3,INDEX(ROW($A$1:Y12),MATCH($AH$4,$AN$10:$AN$21,0)),COLUMNS($C$2:AA2))),\"\",DATE($AH$3,INDEX(ROW($A$1:Y12),MATCH($AH$4,$AN$10:$AN$21,0)),COLUMNS($C$2:AA2)))","v":"2023-02-25"},{"$f":"IF(COLUMNS($C$2:AB2)>DAY(DATE($AH$3,INDEX(ROW($A$1:Z12),MATCH($AH$4,$AN$10:$AN$21,0)),COLUMNS($C$2:AB2))),\"\",DATE($AH$3,INDEX(ROW($A$1:Z12),MATCH($AH$4,$AN$10:$AN$21,0)),COLUMNS($C$2:AB2)))","v":"2023-02-26"},{"$f":"IF(COLUMNS($C$2:AC2)>DAY(DATE($AH$3,INDEX(ROW($A$1:AA12),MATCH($AH$4,$AN$10:$AN$21,0)),COLUMNS($C$2:AC2))),\"\",DATE($AH$3,INDEX(ROW($A$1:AA12),MATCH($AH$4,$AN$10:$AN$21,0)),COLUMNS($C$2:AC2)))","v":"2023-02-27"},{"$f":"IF(COLUMNS($C$2:AD2)>DAY(DATE($AH$3,INDEX(ROW($A$1:AB12),MATCH($AH$4,$AN$10:$AN$21,0)),COLUMNS($C$2:AD2))),\"\",DATE($AH$3,INDEX(ROW($A$1:AB12),MATCH($AH$4,$AN$10:$AN$21,0)),COLUMNS($C$2:AD2)))","v":"2023-02-28"},{"$f":"IF(COLUMNS($C$2:AE2)>DAY(DATE($AH$3,INDEX(ROW($A$1:AC12),MATCH($AH$4,$AN$10:$AN$21,0)),COLUMNS($C$2:AE2))),\"\",DATE($AH$3,INDEX(ROW($A$1:AC12),MATCH($AH$4,$AN$10:$AN$21,0)),COLUMNS($C$2:AE2)))","v":""},{"$f":"IF(COLUMNS($C$2:AF2)>DAY(DATE($AH$3,INDEX(ROW($A$1:AD12),MATCH($AH$4,$AN$10:$AN$21,0)),COLUMNS($C$2:AF2))),\"\",DATE($AH$3,INDEX(ROW($A$1:AD12),MATCH($AH$4,$AN$10:$AN$21,0)),COLUMNS($C$2:AF2)))","v":""},{"$f":"IF(COLUMNS($C$2:AG2)>DAY(DATE($AH$3,INDEX(ROW($A$1:AE12),MATCH($AH$4,$AN$10:$AN$21,0)),COLUMNS($C$2:AG2))),\"\",DATE($AH$3,INDEX(ROW($A$1:AE12),MATCH($AH$4,$AN$10:$AN$21,0)),COLUMNS($C$2:AG2)))","v":""},null,"اعتيادى","المرضى","الوضع","بدون مرتب"]
[{"$f":"IF(B7=\"\",\"\",ROW()-6)","v":1},"عصام",null,null,"المرضى","المرضى","المرضى","المرضى",null,null,null,null,null,null,null,null,null,null,null,null,null,null,null,null,null,null,null,null,null,null,null,null,null,{"$f":"COUNTA(C7:AG7)","v":4},null,10]
[{"$f":"IF(B8=\"\",\"\",ROW()-6)","v":2},"عصام",null,null,null,null,"المرضى","المرضى","المرضى","المرضى","المرضى","المرضى","المرضى","المرضى","المرضى","المرضى",null,null,null,null,null,null,null,null,null,null,null,null,null,null,null,null,null,{"$f":"COUNTA(C8:AG8)","v":10}]
[3,"ادام",null,null,null,null,null,null,null,null,null,null,null,null,null,null,null,null,null,null,null,null,null,null,"المرضى","المرضى",null,null,null,null,null,null,null,2]
[4,"عادل",null,null,null,null,"المرضى","المرضى","المرضى","المرضى","المرضى",null,null,null,null,null,null,null,null,null,null,null,null,null,null,null,null,null,null,null,null,null,null,5,null,null,null,null,"السبت","يناير",1,"اعتيادى"]
[5,"حامد",null,null,"اعتيادى","اعتيادى",null,null,null,null,null,null,null,null,null,null,null,null,null,null,null,null,null,null,null,null,null,null,null,null,null,null,null,2,null,null,null,null,"الأحد","فبراير",2,"المرضى"]
[6,"محسن",null,null,null,null,null,null,null,null,null,null,null,null,"الوضع","الوضع","الوضع","الوضع",null,null,null,null,null,null,null,null,null,null,null,null,null,null,null,4,null,null,null,null,"الإثنين","مارس",3,"الوضع"]
["",null,null,null,null,null,null,null,null,null,null,null,null,null,null,null,null,null,null,null,null,null,null,null,null,null,null,null,null,null,null,null,null,0,null,null,null,null,"الثلاثاء","أبريل",4,"بدون مرتب"]
["",null,null,null,null,null,null,null,null,null,null,null,null,null,null,null,null,null,null,null,null,null,null,null,null,null,null,null,null,null,null,null,null,0,null,null,null,null,"الأربعاء","مايو",5]
["",null,null,null,null,null,null,null,null,null,null,null,null,null,null,null,null,null,null,null,null,null,null,null,null,null,null,null,null,null,null,null,null,0,null,null,null,null,"الخميس","يونيو",6]
["",null,null,null,null,null,null,null,null,null,null,null,null,null,null,null,null,null,null,null,null,null,null,null,null,null,null,null,null,null,null,null,null,0,null,null,null,null,"الجمعة","يوليه",7]
["",null,null,null,null,null,null,null,null,null,null,null,null,null,null,null,null,null,null,null,null,null,null,null,null,null,null,null,null,null,null,null,null,0,null,null,null,null,null,"أغسطس",8]
["",null,null,null,null,null,null,null,null,null,null,null,null,null,null,null,null,null,null,null,null,null,null,null,null,null,null,null,null,null,null,null,null,0,null,null,null,null,null,"سبتمبر",9]
["",null,null,null,null,null,null,null,null,null,null,null,null,null,null,null,null,null,null,null,null,null,null,null,null,null,null,null,null,null,null,null,null,0,null,null,null,null,null,"أكتوبر",10]
["",null,null,null,null,null,null,null,null,null,null,null,null,null,null,null,null,null,null,null,null,null,null,null,null,null,null,null,null,null,null,null,null,0,null,null,null,null,null,"نوفمبر",11]
[null,null,null,null,null,null,null,null,null,null,null,null,null,null,null,null,null,null,null,null,null,null,null,null,null,null,null,null,null,null,null,null,null,null,null,null,null,null,null,"ديسمبر",12]
[null,null,null,null,null,null,null,null,null,null,null,null,null,null,null,null,null,null,null,null,null,null,null,null,null,null,null,null,null,null,null,null,null,null,null,null,null,null,null,null,13]
[null,null,null,null,null,null,null,null,null,null,null,null,null,null,null,null,null,null,null,null,null,null,null,null,null,null,null,null,null,null,null,null,null,null,null,null,null,null,null,null,14]
[null,null,null,null,null,null,null,null,null,null,null,null,null,null,null,null,null,null,null,null,null,null,null,null,null,null,null,null,null,null,null,null,null,null,null,null,null,null,null,null,15]
[null,null,null,null,null,null,null,null,null,null,null,null,null,null,null,null,null,null,null,null,null,null,null,null,null,null,null,null,null,null,null,null,null,null,null,null,null,null,null,null,16]
[null,null,null,null,null,null,null,null,null,null,null,null,null,null,null,null,null,null,null,null,null,null,null,null,null,null,null,null,null,null,null,null,null,null,null,null,null,null,null,null,17]
[null,null,null,null,null,null,null,null,null,null,null,null,null,null,null,null,null,null,null,null,null,null,null,null,null,null,null,null,null,null,null,null,null,null,null,null,null,null,null,null,18]
[null,null,null,null,null,null,null,null,null,null,null,null,null,null,null,null,null,null,null,null,null,null,null,null,null,null,null,null,null,null,null,null,null,null,null,null,null,null,null,null,19]
[null,null,null,null,null,null,null,null,null,null,null,null,null,null,null,null,null,null,null,null,null,null,null,null,null,null,null,null,null,null,null,null,null,null,null,null,null,null,null,null,20]
[null,null,null,null,null,null,null,null,null,null,null,null,null,null,null,null,null,null,null,null,null,null,null,null,null,null,null,null,null,null,null,null,null,null,null,null,null,null,null,null,21]
[null,null,null,null,null,null,null,null,null,null,null,null,null,null,null,null,null,null,null,null,null,null,null,null,null,null,null,null,null,null,null,null,null,null,null,null,null,null,null,null,22]
[null,null,null,null,null,null,null,null,null,null,null,null,null,null,null,null,null,null,null,null,null,null,null,null,null,null,null,null,null,null,null,null,null,null,null,null,null,null,null,null,23]
[null,null,null,null,null,null,null,null,null,null,null,null,null,null,null,null,null,null,null,null,null,null,null,null,null,null,null,null,null,null,null,null,null,null,null,null,null,null,null,null,24]
[null,null,null,null,null,null,null,null,null,null,null,null,null,null,null,null,null,null,null,null,null,null,null,null,null,null,null,null,null,null,null,null,null,null,null,null,null,null,null,null,25]
[null,null,null,null,null,null,null,null,null,null,null,null,null,null,null,null,null,null,null,null,null,null,null,null,null,null,null,null,null,null,null,null,null,null,null,null,null,null,null,null,26]
[null,null,null,null,null,null,null,null,null,null,null,null,null,null,null,null,null,null,null,null,null,null,null,null,null,null,null,null,null,null,null,null,null,null,null,null,null,null,null,null,27]
[null,null,null,null,null,null,null,null,null,null,null,null,null,null,null,null,null,null,null,null,null,null,null,null,null,null,null,null,null,null,null,null,null,null,null,null,null,null,null,null,28]
[null,null,null,null,null,null,null,null,null,null,null,null,null,null,null,null,null,null,null,null,null,null,null,null,null,null,null,null,null,null,null,null,null,null,null,null,null,null,null,null,29]
[null,null,null,null,null,null,null,null,null,null,null,null,null,null,null,null,null,null,null,null,null,null,null,null,null,null,null,null,null,null,null,null,null,null,null,null,null,null,null,null,30]
[null,null,null,null,null,null,null,null,null,null,null,null,null,null,null,null,null,null,null,null,null,null,null,null,null,null,null,null,null,null,null,null,null,null,null,null,null,null,null,null,31]

{"sheet":"تجميع الغياب","index":1,"n_rows":20,"n_cols":23,"rows_kept":20,"cut":false,"hidden":false,"merged":[[2,0,2,10],[2,11,2,22],[3,0,4,0],[3,1,4,1],[3,2,3,10],[3,11,3,13],[3,14,3,16],[3,17,3,19],[3,20,3,22]]}
[]
[]
[null,null,null,null,null,null,null,null,null,null,null,"الاجازات"]
["م","الاسم","عدد أيام العارضة",null,null,null,null,null,null,null,null,"اعتيادى",null,null,"المرضى",null,null,"الوضع",null,null,"بدون مرتب"]
[null,null,"اليوم الأول","اليوم الثانى","اليوم الثالث","اليوم الرابع","اليوم الخامس","اليوم السادس","اليوم السابع","عدد يام الغياب","التوقيع بالعلم","من","الى","عدد الأيام","من","الى","عدد الأيام","من","الى","عدد الأيام","من","الى","عدد الأيام"]
[2,"ابراهيم",null,null,null,null,null,null,null,{"$f":"COUNTA(C6:I6)","v":0},null,null,null,{"$f":"IF(L6=\"\",\"\",M6-L6+1)","v":""},null,null,{"$f":"IF(P6=\"\",\"\",P6-O6+1)","v":""},null,null,{"$f":"IF(R6=\"\",\"\",S6-R6+1)","v":""},null,null,{"$f":"IF(U6=\"\",\"\",V6-U6+1)","v":""}]
[3,"ادام",null,null,null,null,null,null,null,{"$f":"COUNTA(C7:I7)","v":0},null,null,null,{"$f":"IF(L7=\"\",\"\",M7-L7+1)","v":""},null,null,{"$f":"IF(P7=\"\",\"\",P7-O7+1)","v":""},null,null,{"$f":"IF(R7=\"\",\"\",S7-R7+1)","v":""},null,null,{"$f":"IF(U7=\"\",\"\",V7-U7+1)","v":""}]
[4,"عادل",null,null,null,null,null,null,null,0,null,null,null,{"$f":"IF(L8=\"\",\"\",M8-L8)","v":""},"2023-02-05","2023-02-15",{"$f":"IF(P8=\"\",\"\",P8-O8)","v":10},null,null,"",null,null,""]
[5,"عصام",null,null,null,null,null,null,null,0,null,null,null,"",null,null,"",null,null,"",null,null,""]
[6,"على",null,null,null,null,null,null,null,0,null,null,null,"",null,null,"",null,null,"",null,null,""]
[7,"عماد",null,null,null,null,null,null,null,0,null,null,null,"",null,null,"",null,null,"",null,null,""]
[8,"محسن",null,null,null,null,null,null,null,0,null,null,null,"",null,null,"","13/2/2023","17/2/2027",4,null,null,""]
[9,"محمد",null,null,null,null,null,null,null,0,null,null,null,"",null,null,"",null,null,"",null,null,""]
[10,"محمود",null,null,null,null,null,null,null,0,null,null,null,"",null,null,"",null,null,"",null,null,""]
[11,"مدحت",null,null,null,null,null,null,null,0,null,null,null,"",null,null,"",null,null,"",null,null,""]
[12,"ممدوح",null,null,null,null,null,null,null,0,null,null,null,"",null,null,"",null,null,"",null,null,""]
[13,"نادر",null,null,null,null,null,null,null,0,null,null,null,"",null,null,"",null,null,"",null,null,""]
[14,"حامد",null,null,null,null,null,null,null,0,null,"2023-03-02","2023-05-02",2,null,null,"",null,null,"",null,null,""]
[15,null,null,null,null,null,null,null,null,0,null,null,null,"",null,null,"",null,null,"",null,null,""]
[16,null,null,null,null,null,null,null,null,0,null,null,null,"",null,null,"",null,null,"",null,null,""]